Cogmind - Beta 13 @@@ ROGUE MODE // 2024.04.11 @ 23:49:26 Player: Xidas Result: Self-destructed Performance ------------- Evolutions (1) 500 Regions Visited (2) 400 Robots Destroyed (8) 40 Value Destroyed (144) 144 Prototype IDs (5) 100 Alien Tech Used (0) 0 Bonus (0) 0 TOTAL SCORE: 1184 Bonus ------- None Cogmind --------- Core Integrity 192/400 Matter 261/300 Energy 85/100 System Corruption 1% Temperature Cool (0) Movement Treading (160) Location -9/Materials Parts ------- > --- POWER (1) -------- (None) > --- PROPULSION (4) --- Light Treads > --- UTILITY (2) ------ (None) > --- WEAPON (2) ------- Heavy Assault Rifle Mining Claw > --- INVENTORY (5) ---- Light Ion Engine Authchip [Power] Authchip [Weapon] Spread Laser Assault Rifle Peak State ------------ > --- POWER ------------ Light Ion Engine > --- PROPULSION ------- Flight Unit Flight Unit Flight Unit > --- UTILITY ---------- Light Armor Plating > --- WEAPON ----------- Heavy EM Shotgun Heavy Assault Rifle > --- INVENTORY -------- Light Ion Engine High-capacity Matter Pod Small Laser Spread Laser Assault Rifle [Rating: 11] Favorites ----------- Power Ion Engine Engine Ion Engine Propulsion Flight Unit Treads Light Treads Leg Aluminum Leg Flight Unit Flight Unit Utility Small Storage Unit Storage Small Storage Unit Protection Light Armor Plating Weapon Medium Laser Energy Gun Medium Laser Ballistic Gun Assault Rifle Slashing Weapon Mining Claw Build | -11 -10 -9 ------- Run | Yrd Mat Mat Slots Evolved 2 | . . 2 Power . | . . . Propulsion 2 | . . 2 Utility . | . . . Weapon . | . . . Parts Attached 22 | 6 6 10 Power 3 | 1 2 . Engine 3 | 1 2 . Core . | . . . Reactor . | . . . Propulsion 6 | 2 2 2 Treads 1 | . . 1 Leg 2 | 2 . . Wheel . | . . . Hover . | . . . Flight 3 | . 2 1 Utility 3 | 1 . 2 Device . | . . . Storage 1 | 1 . . Processor . | . . . Hackware . | . . . Protection 2 | . . 2 Artifact . | . . . Weapon 10 | 2 2 6 Energy Gun 5 | 2 1 2 Energy Cannon . | . . . Ballistic Gun 4 | . 1 3 Ballistic Cannon . | . . . Launcher . | . . . Special Weapon . | . . . Impact Weapon . | . . . Slashing Weapon 1 | . . 1 Piercing Weapon . | . . . Special Melee Weapon . | . . . Unidentified Prototypes 1 | . . 1 Parts Lost 6 | . 1 5 Power 1 | . . 1 Propulsion 2 | . . 2 Utility 2 | . . 2 Weapon 1 | . 1 . Highest Loss Streak 5 | . 1 5 To Critical Strikes . | . . . Average Slot Usage (%) 77 | . 80 72 Engine 12 | . 14 10 Leg 13 | . 21 . Flight 14 | . 5 30 Storage 6 | . 10 . Protection 3 | . . 9 Energy Gun 17 | . 21 10 Ballistic Gun 6 | . 5 8 Naked Turns . | . . . Heaviest Build 14 | 14 14 12 Greatest Support 20 | 20 20 20 Greatest Overweight (x) 2 | 1 2 2 Average Overweight (x) . | . . . Largest Inventory Capacity 8 | 8 8 5 Average Capacity 6 | 7 7 5 Most Carried 8 | 4 8 5 Average Carried 5 | 2 5 4 Final Capacity 8 | 8 5 5 Final Carried 5 | 4 5 5 Class Distribution -------------------- 100% | Mutant Dominant Class ---------------- Mutant | -10/Materials Mutant | -9/Materials Resources | -11 -10 -9 ----------- Run | Yrd Mat Mat Matter Collected 400 | 231 59 110 Remotely . | . . . Salvage Created 259 | . 137 122 Parts 19 | . 10 9 Haulers Intercepted 1 | . . 1 Recyclers Shooed 1 | . 1 . Parts Field Recycled . | . . . Retrieved Matter . | . . . Parts Self-Destructed . | . . . Prevented . | . . . Kills | -11 -10 -9 ------- Run | Yrd Mat Mat Combat Hostiles Destroyed 3 | . 2 1 Melee 1 | . . 1 Guns 2 | . 2 . Classes Destroyed 5 | . 3 2 Worker 1 | . 1 . Builder 3 | . 2 1 Hauler 1 | . . 1 Grunt 2 | . 2 . Sentry 1 | . . 1 Best Kill Streak 5 | . 5 2 Combat Bots Only 2 | . 2 1 Max Kills in Single Turn 1 | . 1 1 Gunslinging . | . . . Exploded . | . . . Melee 1 | . . 1 Uniques/NPCs Destroyed . | . . . Combat | -11 -10 -9 -------- Run | Yrd Mat Mat Hostile Shots Fired 122 | . 37 85 Missed 47 | . 16 31 Damage Taken 915 | . 314 601 Core 263 | . 55 208 Absorbed by Shields . | . . . Core Remaining (%) 89 | 100 78 . Volleys Fired 26 | . 21 5 Largest 2 | . 2 2 Hottest 100 | . 100 70 Shots Fired 44 | . 35 9 Gun 44 | . 35 9 Cannon . | . . . Launcher . | . . . Special . | . . . Kinetic 12 | . 7 5 Thermal 21 | . 21 . Explosive . | . . . Electromagnetic 11 | . 7 4 Robot Hit Streak 3 | . 3 3 Robot Miss Streak 7 | . 6 7 Penetration Max . | . . . Secondary Targets . | . . . Shots Hit Robots 22 | . 14 8 Core Hits 13 | . 9 4 Critical Kills . | . . . Critical Parts Destroyed . | . . . Critical Strikes 2 | . 2 . Burn 2 | . 2 . Melee Attacks 6 | . . 6 Impact . | . . . Slashing 6 | . . 6 Piercing . | . . . Sneak Attacks . | . . . Combat Hostiles . | . . . Follow-up Attacks . | . . . Damage Inflicted 463 | . 257 206 Guns 348 | . 257 91 Cannons . | . . . Explosions . | . . . Melee 115 | . . 115 Ramming . | . . . Kinetic 89 | . 50 39 Thermal 173 | . 173 . Explosive . | . . . Electromagnetic 86 | . 34 52 Impact . | . . . Slashing 115 | . . 115 Piercing . | . . . Highest Corruption 1 | . . 1 Average Corruption 1 | . . 1 Corruption Purged . | . . . Corruption Blocked . | . . . Effects 2 | . . 2 Matter Fused 1 | . . 1 Parts Rejected 1 | . . 1 Overload Shots . | . . . Overflow Damage . | . . . Projectiles . | . . . Explosions . | . . . Melee . | . . . Knockbacks . | . . . Impact . | . . . Kinetic . | . . . Secondary . | . . . Self-Inflicted Damage . | . . . Shots . | . . . Rammed . | . . . Targets Rammed . | . . . Kicked . | . . . Crushed . | . . . Highest Temperature 414 | . 414 39 Average Temperature 148 | . 190 19 Received Heat Transfer 342 | . 183 159 Effects 4 | . 4 . Energy Bleed 3 | . 3 . Short Circuit 1 | . 1 . Siege Activations . | . . . Robots Corrupted . | . . . Combat Hostiles . | . . . Parts Fried . | . . . Impact Corruptions . | . . . Robots Melted . | . . . Combat Hostiles . | . . . Parts Melted 1 | . 1 . Heat Transferred 666 | . 666 . Parts Sabotaged . | . . . Parts Stolen . | . . . Parts Stripped . | . . . Power Chain Reactions . | . . . Alert | -11 -10 -9 ------- Run | Yrd Mat Mat Peak Influence 162 | . 130 162 Initial 5 | . . 5 Average 33 | . 33 47 Maximum Alert Level . | . . . Low Security (%) 100 | 100 100 100 Level 1 . | . . . Level 2 . | . . . Level 3 . | . . . Level 4 . | . . . Level 5 . | . . . High Security . | . . . Max Security . | . . . Squads Dispatched 3 | . 1 2 Investigation 1 | . . 1 Extermination . | . . . Reinforcement 2 | . 1 1 Assault . | . . . Garrison . | . . . Intercept . | . . . Searches Triggered . | . . . Construction Impeded . | . . . Haulers Reinforced . | . . . Active Scanning Responses . | . . . Cargo Convoy Interrupts . | . . . Stealth | -11 -10 -9 --------- Run | Yrd Mat Mat Distress Signals 3 | . . 3 Communications Jammed . | . . . Distress Signals . | . . . Times Spotted 30 | . 11 19 Peak Tracking Total 13 | . 6 13 Tactical Retreats 3 | . 2 1 Traps | -11 -10 -9 ------- Run | Yrd Mat Mat Traps Triggered 3 | . 1 2 Indirectly . | . . . Trap Hack Attempts . | . . . Triggered . | . . . Disarmed . | . . . Reprogrammed . | . . . Reused . | . . . Traps Extracted . | . . . Installed . | . . . Triggered . | . . . Machines | -11 -10 -9 ---------- Run | Yrd Mat Mat Machines Disabled . | . . . Max in Single Turn . | . . . Machines Repaired . | . . . Machines Dismantled . | . . . Machines Sabotaged . | . . . Overloaded Fab Kills . | . . . Hacking | -11 -10 -9 --------- Run | Yrd Mat Mat Machines Accessed 6 | . 3 3 Terminals 4 | . 2 2 Fabricators . | . . . Repair Stations . | . . . Recycling Units 2 | . 1 1 Scanalyzers . | . . . Garrison Access . | . . . Total Hacks 17 | . 8 9 Successful 7 | . 3 4 Failed 10 | . 5 5 Catastrophic 1 | . 1 . Database Lockouts . | . . . Manual 3 | . 3 . Terminals 10 | . 6 4 Fabricators . | . . . Repair Stations . | . . . Recycling Units 7 | . 2 5 Scanalyzers . | . . . Garrison Access . | . . . Terminal Hacks 6 | . 3 3 Prototype ID Bank 2 | . 1 1 Emergency Access Points 1 | . 1 . Alert Level 1 | . . 1 Unreport Threat 1 | . 1 . Transport Status 1 | . . 1 Fabricator Hacks . | . . . Repair Station Hacks . | . . . Recycling Unit Hacks 1 | . . 1 Report Inventory 1 | . . 1 Scanalyzer . | . . . Garrison Access Hacks . | . . . Unauthorized Hacks . | . . . Terminals . | . . . Fabricators . | . . . Repair Stations . | . . . Recycling Units . | . . . Scanalyzers . | . . . Garrison Access . | . . . Data Cores Recovered . | . . . Used . | . . . Hacking Detections 6 | . 3 3 Full Trace Events 1 | . . 1 Feedback Events 1 | . . 1 Corruption 1 | . . 1 Feedback Blocked . | . . . Robot Schematics Acquired . | . . . Robots Built . | . . . Authchips . | . . . Time . | . . . Total Robot Build Rating . | . . . Part Schematics Acquired . | . . . Parts Built . | . . . Authchips . | . . . Time . | . . . Total Part Build Rating . | . . . Parts Repaired . | . . . Time . | . . . Parts Recycled . | . . . Recycled Matter . | . . . Retrieved Matter . | . . . Retrieved Components . | . . . Parts Scanalyzed . | . . . Part Schematics Acquired . | . . . Parts Damaged . | . . . Bothacking | -11 -10 -9 ------------ Run | Yrd Mat Mat Used RIF Installer . | . . . Robots Hacked . | . . . Non-combat . | . . . Combat . | . . . Robot Hacks Applied . | . . . Relay Couplers Released . | . . . Fabnet Peak Effective % . | . . . Robots Rewired . | . . . Allies Hacked . | . . . Hacks Repelled . | . . . Allies | -11 -10 -9 -------- Run | Yrd Mat Mat Total Allies . | . . . Largest Group . | . . . Highest-Rated Group . | . . . Highest-Rated Ally . | . . . Total Orders . | . . . Ally Attacks . | . . . Total Damage . | . . . Kills . | . . . Allies Corrupted . | . . . Allies Melted . | . . . Intel | -11 -10 -9 ------- Run | Yrd Mat Mat Robot Analysis Total . | . . . Derelict Logs Recovered . | . . . Drone Launches . | . . . Drone Recoveries . | . . . Exploration | -11 -10 -9 ------------- Run | Yrd Mat Mat Turns Passed 555 | 63 313 179 Spaces Moved 575 | 44 218 313 Core 4 | 4 . . Treads 2 | . . 2 Legs 194 | 40 154 . Wheels . | . . . Hover . | . . . Flight 375 | . 64 311 Fastest Speed 34 | 50 37 34 Average Speed 65 | 115 97 35 Slowest Speed 200 | 120 200 200 Overloaded Moves . | . . . Propulsion Burnouts . | . . . Robots Hopped 3 | . 1 2 Cave-ins Triggered . | . . . Exploration Rate (%) 25 | 3 38 34 Regions Visited 2 Branch Regions . Pre-discovered Areas . | . . . Known Exits Taken . | . . . Unknown Exits Taken 2 | 1 1 . Scrap Searched . | . . . Spaces Dug . | . . . Terrain Destroyed . | . . . Melee . | . . . Projectile . | . . . AOE . | . . . Terrain Rammed . | . . . Walls Destroyed . | . . . Machines Disabled . | . . . Actions | -11 -10 -9 --------- Run | Yrd Mat Mat Total 697 | 53 285 359 Wait 35 | . 25 10 Move 568 | 43 215 310 Hop 2 | . 1 1 Pick Up 20 | 4 8 8 Fast Attach 14 | 6 3 5 Attach 2 | . 1 1 Detach . | . . . Swap 6 | . 2 4 Drop 18 | . 9 9 Fire 26 | . 21 5 Melee 6 | . . 6 Ram . | . . . Kick . | . . . Crush . | . . . Escape Stasis . | . . . Rewire . | . . . Trap . | . . . Miscellaneous . | . . . Route ------- -11/Scrapyard -10/Materials -9/Materials History --------- Turn | Location | Event 6 | -11/Scrapyard | Discovered new exit (range 16) 64 | -11/Scrapyard | Entered Materials 343 | -10/Materials | Build established: Mutant 373 | -10/Materials | Discovered new exit (range 9) 377 | -10/Materials | Entered another Materials area 377 | -9/Materials | Evolved 2 slots: Propulsion x2 556 | -9/Materials | Core integrity fell below 50% 556 | -9/Materials | Self-destructed Last Messages --------------- 00519_ Critical hit (Burn: +37). 00528_ U-05 Engineer builds a Door. 00530_ System corrupted: Flight Unit rejected. 00533_ Flight Unit destroyed. 00536_ U-05 Engineer builds a Door. 00539_ Critical hit (Destroy). 00541_ Y-45 Defender destroyed. 00544_ Lgt. Armor Plating destroyed. 00544_ Dropped Hvy. EM Shotgun. 00545_ G-34 Mercenary destroyed. 00545_ Acquired 59 matter. 00546_ Lgt. Ion Engine destroyed. 00546_ Acquired Lgt. Treads. 00549_ Acquired Lgt. Armor Plating. 00551_ Flight Unit destroyed. 00552_ HV Slug penetrates Wall. 00553_ Acquired Hvy. Assault Rifle. 00554_ U-05 Engineer destroyed. 00555_ K-01 Serf collects debris. 00555_ Lgt. Armor Plating destroyed. Map ----- +----------------------------------------------------+ | ######?######### ## #??????#+###????????? | | #?????????# ## #???????????????????? | | "T" #?????????# ## #???????????????????? | | #?????????# ## #???????????????????? | | ! #?????????# ## #???????????????????? | | ######?????????" # #???????????????????? | | ??????????????? # #???????????????????? | | ???????????????? ?# #???????????????????? | | ????????????????????# #???????????????????? | | ????????????????????#######+############?????????? | | ??????????????????????????#Y#?# ??????????? | | ????????????????????????###u### """ ??????????? | | ????????????????????????# # """ #?????????? | | ????????????????????????# kg # """ #?????????? | | ????????????????????????# =u! + #?????????? | | ????????????????????????# g%Y# """ #?????????? | | ????????????????????????# s # """ #?????????? | | ????????????????????????## ## """ #?????????? | | ?????????????????????????#gg ## #?????????? | | ???????????????#?????????# ###########?????????? | | ???????????????# ???????# u #???????????????????? | | ??????????????## ?????## ##??????????????????? | | ?????????????;# ##### #?"" #?????????? | | ????????????? " s = #""" #?????????? | | ?????????????? "T s %*![ + #?????????? | | ?????????? uw @ * #""" #?????????? | | ??????????????# ##### #?"" #?????????? | | ??????????????#####?????## ##??" #?????????? | | ?????????????????????????# #???????????????????? | | ?????????????????????????# l#???????????????????? | | ?????????????????????????# #???????????????????? | | ????????????????????????? ???????????????????? | | ????????????????????????? ??????????????????? | | ?????????????????????????** ?????????????????? | | ????????????????????????*** g #????????????????? | | ????????????????????????** #????????????????? | | ???????????????????????? g #????????????????? | | ???????????????????????? #????????????????? | | ???????????????????????? #????????????????? | | ????????????????????????? """ #????????????????? | | ????????????????????????? ""? ??????????????????? | | ????????????????????????? ??????????????????????? | | ?????????????????????????????????????????????????? | | ?????????????????????????????????????????????????? | | ?????????????????????????????????????????????????? | | ?????????????????????????????????????????????????? | | ?????????????????????????????????????????????????? | | ?????????????????????????????????????????????????? | | ?????????????????????????????????????????????????? | | ?????????????????????????????????????????????????? | +----------------------------------------------------+ Best States ------------- Heat Dissipation 28 Energy Generation 10 Energy Capacity 250 Matter Stores 300 Matter Capacity 300 Sight Range 16 Terrain Scan Density 10 Armor Coverage 150 Evasion (%) 63 Recoil Reduction 1 Authchip Count 2 Item Schematics ----------------- None Robot Schematics ------------------ None Fabricated ------------ Nothing Alien Tech Used ----------------- None Achievements -------------- None Challenges ------------ None Game ------ Seed ProtonProcessingMagmablaster Manual? 0 Play Time 00:15:06 Cumulative 18.0 hours Start 2024.04.11 @ 23:06:14 End 2024.04.11 @ 23:49:26 Sessions 3 Manual Loads 0 Difficulty Rogue Special Mode None Game No. 21 Rogue 21 Adventurer 0 Explorer 0 Win Type - Total 0 Types 0/0/0/0/0/0/0/0/0 Lore% 17 Gallery% 17 Achievement% 13 Wizard Run 0 Options --------- Layout 1 ASCII 0 Keyboard 0 Movement Mouse Keybinds 0 Fullscreen 1 Font 24/Smallcaps Map View 50x35 Zoom Use 0% Tactical HUD 1 Map Filters NONE Filters NONE Steam 1 RUN: 67c24966-4d03-42fd-be0b-3d07f6d1db5c